fUST/lending_fUST_20250809
["ID","MTS","AMOUNT","RATE_DAILY","PERIOD"]
[378100670,1754731842028,-355.23616479,0.00021918,2]
[378100671,1754731842039,-500.0,0.00021927,2]
[378100672,1754731842049,-442.65056221,0.0002195,2]
[378100673,1754731842059,-500.0,0.00021973,2]
[378100674,1754731842069,-537.2291448,0.00021973,2]
[378100675,1754731842079,-500.0,0.00021973,2]
[378100676,1754731842091,-500.0,0.00021973,2]
[378100677,1754731842101,-500.0,0.00021973,2]
[378100678,1754731842111,-500.0,0.00021973,2]
[378100679,1754731842120,-500.0,0.00021973,2]
[378100680,1754731842250,-500.0,0.00021973,2]
[378100681,1754731842263,-500.00704294,0.00021973,2]
[378100682,1754731842273,-500.0,0.00021973,2]
[378100683,1754731842283,-635.36961691,0.00021973,2]
[378100684,1754731842292,-500.36776074,0.00021973,2]
[378100685,1754731842302,-161.61667776,0.00021973,2]
[378100686,1754731842313,-500.0,0.00021973,2]
[378100687,1754731842323,-500.0,0.00021973,2]
[378100688,1754731842332,-500.0,0.00021973,2]
[378100689,1754731842341,-500.0,0.00021973,2]
[378100690,1754731842352,-504.7247005,0.00021973,2]
[378100691,1754731842362,-500.0,0.00021973,2]
[378100692,1754731842372,-500.0,0.00021973,2]
[378100693,1754731842382,-295.58083078,0.00021973,2]
[378100694,1754731842391,-509.06019207,0.00021973,2]
[378100695,1754731842401,-500.0,0.00021973,2]
[378100696,1754731842410,-500.0,0.00021973,2]
[378100697,1754731842419,-500.0,0.00021973,2]
[378100698,1754731842428,-500.0,0.00021973,2]
[378100699,1754731842438,-500.0,0.00021973,2]
[378100700,1754731842447,-500.0,0.00021973,2]
[378100701,1754731842456,-500.0,0.00021973,2]
[378100702,1754731842466,-500.0,0.00021973,2]
[378100703,1754731842475,-500.0,0.00021973,2]
[378100704,1754731842484,-500.0,0.00021973,2]
[378100705,1754731842493,-158.0,0.00021973,2]
[378100706,1754731842503,-158.41797497,0.00021973,2]
[378100707,1754731842512,-500.0,0.00021973,2]
[378100708,1754731842521,-461.15849543,0.00021973,2]
[378100709,1754731842530,-500.0,0.00021973,2]
[378100710,1754731842540,-500.0,0.00021973,2]
[378100711,1754731842549,-516.7285694,0.00021973,2]
[378100712,1754731842558,-500.0,0.00021973,2]
[378100713,1754731842568,-500.0,0.00021973,2]
[378100714,1754731842577,-500.0,0.00021973,2]
[378100715,1754731842586,-442.50132313,0.00021973,2]
[378100716,1754731842596,-379.80132043,0.00021973,2]
[378100717,1754731842605,-500.0,0.00021973,2]
[378100718,1754731842614,-500.0,0.00021973,2]
[378100719,1754731842623,-578.98598067,0.00021973,2]
[378100720,1754731842633,-320.90177461,0.00021973,2]
[378100721,1754731842642,-500.0,0.00021973,2]
[378100722,1754731842652,-500.0,0.00021973,2]
[378100723,1754731842661,-500.0,0.00021973,2]
[378100724,1754731842671,-474.07423188,0.00021973,2]
[378100725,1754731842680,-488.74168159,0.00021973,2]
[378100726,1754731842689,-500.41409581,0.00021973,2]
[378100727,1754731842698,-254.18695944,0.00021973,2]
[378100728,1754731842707,-500.0,0.00021973,2]
[378100729,1754731842717,-500.0,0.00021973,2]
[378100731,1754731842726,-500.0,0.00021973,2]
[378100732,1754731842736,-500.0,0.00021973,2]
[378100733,1754731842745,-200.0,0.00021973,2]
[378100734,1754731842754,-500.0,0.00021973,2]
[378100735,1754731842764,-500.0,0.00021973,2]
[378100738,1754731842774,-500.0,0.00021973,2]
[378100740,1754731842783,-710.349849,0.00021973,7]
[378100742,1754731842792,-710.349849,0.00021973,7]
[378100744,1754731842802,-151.0,0.00021982,2]
[378100747,1754731842811,-151.0,0.00021982,2]
[378100748,1754731842821,-151.0,0.00021982,2]
[378100749,1754731842830,-151.0,0.00021982,2]
[378100750,1754731842839,-500.0,0.00021982,2]
[378100751,1754731842849,-151.0,0.00021982,2]
[378100752,1754731842858,-500.0,0.00021982,2]
[378100753,1754731842868,-151.0,0.00021982,2]
[378100754,1754731842878,-300.0,0.00021982,2]
[378100755,1754731842887,-151.0,0.00021982,2]
[378100756,1754731842897,-300.0,0.00021982,2]
[378100757,1754731842907,-151.0,0.00021982,2]
[378100758,1754731842917,-151.0,0.00021982,2]
[378100759,1754731842926,-151.0,0.00021982,2]
[378100760,1754731842935,-151.0,0.00021982,2]
[378100761,1754731842945,-500.0,0.00021982,2]
[378100762,1754731842954,-151.0,0.00021982,2]
[378100763,1754731842963,-151.0,0.00021982,2]
[378100764,1754731842973,-151.0,0.00021982,2]
[378100765,1754731842982,-500.0,0.00021982,2]
[378100766,1754731842991,-151.0,0.00021982,2]
[378100767,1754731843001,-151.0,0.00021982,2]
[378100768,1754731843010,-151.0,0.00021982,2]
[378100769,1754731843020,-500.0,0.00021982,2]
[378100770,1754731843029,-151.0,0.00021982,2]
[378100771,1754731843039,-151.0,0.00021982,2]
[378100772,1754731843049,-151.0,0.00021982,2]
[378100773,1754731843059,-151.0,0.00021982,2]
[378100774,1754731843068,-300.0,0.00021982,2]
[378100775,1754731843079,-2183.31810187,0.00021982,2]
[378100776,1754731843090,-151.0,0.00021982,2]
[378100777,1754731843099,-500.0,0.00021982,2]
[378100778,1754731843108,-151.0,0.00021982,2]
[378100779,1754731843117,-151.0,0.00021982,2]
[378100780,1754731843127,-151.0,0.00021982,2]
[378100781,1754731843137,-300.0,0.00021982,2]
[378100782,1754731843146,-151.0,0.00021982,2]
[378100783,1754731843156,-500.0,0.00021982,2]
[378100784,1754731843166,-151.0,0.00021982,2]
[378100785,1754731843176,-151.0,0.00021982,2]
[378100786,1754731843185,-300.0,0.00021982,2]
[378100787,1754731843199,-151.0,0.00021982,2]
[378100788,1754731843209,-151.0,0.00021982,2]
[378100789,1754731843218,-500.0,0.00021982,2]
[378100790,1754731843228,-151.0,0.00021982,2]
[378100792,1754731843237,-151.0,0.00021982,2]
[378100794,1754731843248,-300.0,0.00021982,2]
[378100797,1754731843257,-151.0,0.00021982,2]
[378100798,1754731843267,-151.0,0.00021982,2]
[378100799,1754731843276,-500.0,0.00021982,2]
[378100800,1754731843286,-151.0,0.00021982,2]
[378100801,1754731843296,-151.0,0.00021982,2]
[378100802,1754731843306,-151.0,0.00021982,2]
[378100803,1754731843317,-300.0,0.00021982,2]
[378100804,1754731843326,-151.0,0.00021982,2]
[378100805,1754731843335,-151.0,0.00021982,2]
[378100806,1754731843345,-500.0,0.00021982,2]
[378100807,1754731843355,-151.0,0.00021982,2]
[378100808,1754731843364,-300.0,0.00021982,2]
[378100809,1754731843373,-151.0,0.00021982,2]
[378100810,1754731843383,-151.0,0.00021982,2]
[378100811,1754731843392,-151.0,0.00021982,2]
[378100812,1754731843401,-151.0,0.00021982,2]
[378100813,1754731843410,-500.0,0.00021982,2]
[378100814,1754731843421,-300.0,0.00021982,2]
[378100815,1754731843431,-151.0,0.00021982,2]
[378100816,1754731843440,-151.0,0.00021982,2]
[378100817,1754731843450,-229.41815613,0.00021982,2]
[378100818,1754731843459,-151.0,0.00021982,2]
[378100819,1754731843468,-500.0,0.00021982,2]
[378100820,1754731843477,-300.0,0.00021982,2]
[378100821,1754731843486,-151.0,0.00021982,2]
[378100822,1754731843495,-151.0,0.00021982,2]
[378100823,1754731843505,-151.0,0.00021982,2]
[378100824,1754731843515,-500.0,0.00021982,2]
[378100825,1754731843524,-151.0,0.00021982,2]
[378100826,1754731843533,-300.0,0.00021982,2]
[378100827,1754731843542,-151.0,0.00021982,2]
[378100828,1754731843551,-151.0,0.00021982,2]
[378100829,1754731843560,-151.0,0.00021982,2]
[378100830,1754731843570,-300.0,0.00021982,2]
[378100831,1754731843578,-151.0,0.00021982,2]
[378100832,1754731843588,-151.0,0.00021982,2]
[378100833,1754731843597,-151.0,0.00021982,2]
[378100834,1754731843606,-300.0,0.00021982,2]
[378100835,1754731843615,-151.0,0.00021982,2]
[378100836,1754731843624,-151.0,0.00021982,2]
[378100837,1754731843634,-151.0,0.00021982,2]
[378100838,1754731843643,-151.0,0.00021982,2]
[378100839,1754731843652,-152.94290677,0.00021982,2]
[378100840,1754731843661,-151.0,0.00021982,2]
[378100841,1754731843670,-250.0,0.00021982,2]
[378100842,1754731843679,-151.0,0.00021982,2]
[378100843,1754731843689,-250.0,0.00021982,2]
[378100844,1754731843698,-151.0,0.00021982,2]
[378100845,1754731843707,-151.0,0.00021982,2]
[378100846,1754731843717,-250.0,0.00021982,2]
[378100847,1754731843725,-151.0,0.00021982,2]
[378100848,1754731843735,-250.0,0.00021982,2]
[378100849,1754731843744,-20633.42279861,0.00021982,2]
[378100850,1754731843753,-250.0,0.00021982,2]
[378100851,1754731843762,-151.0,0.00021982,2]
[378100852,1754731843772,-151.0,0.00021982,2]
[378100853,1754731843781,-250.0,0.00021982,2]
[378100854,1754731843794,-151.0,0.00021982,2]
[378100855,1754731843803,-250.0,0.00021982,2]
[378100856,1754731843812,-250.0,0.00021982,2]
[378100857,1754731843821,-151.0,0.00021982,2]
[378100858,1754731843830,-250.0,0.00021982,2]
[378100859,1754731843839,-151.0,0.00021982,2]
[378100860,1754731843849,-250.0,0.00021982,2]
[378100861,1754731843858,-151.0,0.00021982,2]
[378100862,1754731843867,-250.0,0.00021982,2]
[378100863,1754731843876,-151.0,0.00021982,2]
[378100864,1754731843885,-151.0,0.00021982,7]
[378100865,1754731843895,-151.0,0.00021982,7]
[378100866,1754731843904,-151.0,0.00021982,7]
[378100867,1754731843913,-258.797194,0.00021982,7]
[378100868,1754731843922,-152.235952,0.00021982,7]
[378100869,1754731843932,-445.387101,0.00021982,7]
[378100870,1754731843941,-445.387101,0.00021982,7]
[378100871,1754731843952,-151.0,0.00021982,7]
[378100872,1754731843962,-151.0,0.00021982,7]
[378100873,1754731843971,-151.0,0.00021982,7]
[378100874,1754731843980,-151.0,0.00021982,7]
[378100875,1754731843989,-151.0,0.00021982,7]
[378100876,1754731843999,-151.0,0.00021982,7]
[378100877,1754731844008,-151.0,0.00021982,7]
[378100878,1754731844018,-151.0,0.00021982,7]
[378100879,1754731844027,-151.0,0.00021982,7]
[378100880,1754731844036,-151.0,0.00021982,7]
[378100881,1754731844047,-151.0,0.00021982,7]
[378100882,1754731844056,-151.0,0.00021982,7]
[378100883,1754731844066,-151.0,0.00021982,7]
[378100884,1754731844075,-151.0,0.00021982,7]
[378100885,1754731844085,-151.0,0.00021982,7]
[378100886,1754731844095,-151.0,0.00021982,7]
[378100887,1754731844104,-151.0,0.00021982,7]
[378100888,1754731844114,-151.0,0.00021982,7]
[378100889,1754731844123,-151.0,0.00021982,7]
[378100890,1754731844132,-151.0,0.00021982,7]
[378100891,1754731844142,-151.0,0.00021982,7]
[378100892,1754731844152,-151.0,0.00021982,7]
[378100893,1754731844162,-254.338466,0.00021982,7]
[378100894,1754731844173,-153.454116,0.00021982,7]
[378100895,1754731844183,-151.0,0.00021982,7]
[378100896,1754731844197,-151.0,0.0002199,7]
[378100897,1754731844206,-151.0,0.0002199,7]
[378100898,1754731844215,-151.0,0.0002199,7]
[378100899,1754731844224,-885.170646,0.0002199,7]
[378100900,1754731844235,-885.170646,0.0002199,7]
[378100901,1754731844244,-152.504182,0.0002199,7]
[378100902,1754731844253,-185.767744,0.0002199,7]
[378100903,1754731844264,-185.767744,0.0002199,7]
[378100904,1754731844274,-151.0,0.0002199,7]
[378100905,1754731844283,-151.0,0.0002199,7]
[378100906,1754731844293,-151.0,0.0002199,7]
[378100907,1754731844302,-151.0,0.0002199,7]
[378100908,1754731844311,-516.34471,0.0002199,7]
[378100909,1754731844320,-516.34471,0.0002199,7]
[378100910,1754731844330,-156.883488,0.0002199,7]
[378100911,1754731844339,-156.883488,0.0002199,7]
[378100912,1754731844348,-710.349849,0.0002199,7]
[378100913,1754731844358,-710.349849,0.0002199,7]
[378100914,1754731844367,-878.986196,0.0002199,7]
[378100915,1754731844376,-878.986196,0.0002199,7]
[378100916,1754731844385,-513.179356,0.0002199,7]
[378100917,1754731844394,-513.179356,0.0002199,7]
[378100918,1754731844404,-445.387101,0.0002199,7]
[378100919,1754731844413,-445.387101,0.0002199,7]
[378100920,1754731844423,-151.0,0.0002199,7]
[378100921,1754731844433,-12666.14847857,0.0002199,7]
[378100922,1754731844443,-152.279808,0.0002199,7]
[378100923,1754731844452,-215.40758176,0.0002199,7]
[378100924,1754731844462,-160.0,0.0002199,7]
[378100925,1754731844472,-100000.0,0.0002199,2]
[378100926,1754731844491,-2975.86397564,0.00022,2]
[378100927,1754731844503,-151.0,0.00022,5]
[378100928,1754731844512,-354.14488018,0.00022,2]
[378100929,1754731844522,-242.79,0.00022,2]
[378100930,1754731844531,-1478.71,0.00022,2]
[378100931,1754731844541,-422.0,0.0002203,2]
[378100932,1754731844550,-2264.10087164,0.00022037,2]
[378100933,1754731844560,-151.0,0.00022074,3]
[378100934,1754731844569,-151.0,0.00022074,3]
[378100935,1754731844579,-151.0,0.00022074,3]
[378100936,1754731844589,-151.0,0.00022074,3]
[378100937,1754731844599,-151.0,0.00022074,3]
[378100938,1754731844609,-500.0,0.00022074,3]
[378100939,1754731844619,-151.0,0.00022074,3]
[378100940,1754731844628,-151.0,0.00022074,3]
[378100941,1754731844637,-151.0,0.00022074,3]
[378100942,1754731844647,-500.0,0.00022074,3]
[378100943,1754731844657,-151.0,0.00022074,3]
[378100944,1754731844667,-500.0,0.00022074,3]
[378100945,1754731844676,-252.53139995,0.00022074,3]
[378100946,1754731844686,-2347.87260389,0.00022092,2]
[378100947,1754731844696,-151.0,0.000221,9]
[378100948,1754731844705,-1782.9393189,0.00022137,2]
[378100949,1754731844865,-2434.74389024,0.00022147,2]
[378100950,1754731844874,-151.0,0.00022191,7]
[378100951,1754731844883,-151.0,0.00022191,7]
[378100952,1754731844893,-151.0,0.00022191,7]
[378100953,1754731844902,-885.170646,0.00022191,7]
[378100954,1754731844911,-885.170646,0.00022191,7]
[378100955,1754731844920,-185.767744,0.00022191,7]
[378100956,1754731844931,-185.767744,0.00022191,7]
[378100957,1754731844942,-154.64364,0.00022191,7]
[378100958,1754731844952,-151.0,0.00022191,7]
[378100959,1754731844962,-151.0,0.00022191,7]
[378100960,1754731844973,-479.83211842,0.00022191,2]
[378100961,1754731844982,-460.0,0.00022191,2]
[378100962,1754731844992,-151.0,0.00022191,7]
[378100963,1754731845001,-540.44,0.00022191,2]
[378100964,1754731845011,-460.0,0.00022191,2]
[378100965,1754731845021,-460.0,0.00022191,2]
[378100966,1754731845031,-516.34471,0.00022191,7]
[378100967,1754731845041,-516.34471,0.00022191,7]
[378100968,1754731845051,-460.0,0.00022191,2]
[378100969,1754731845060,-460.0,0.00022191,2]
[378100970,1754731845070,-460.0,0.00022191,2]
[378100971,1754731845079,-460.0,0.00022191,2]
[378100972,1754731845088,-156.883488,0.00022191,7]
[378100973,1754731845098,-156.883488,0.00022191,7]
[378100974,1754731845107,-460.0,0.00022191,2]
[378100975,1754731845116,-710.349849,0.00022191,7]
[378100976,1754731845126,-710.349849,0.00022191,7]
[378100977,1754731845135,-469.75337946,0.00022191,2]
[378100978,1754731845146,-460.0,0.00022191,2]
[378100979,1754731845155,-460.0,0.00022191,2]
[378100980,1754731845164,-460.0,0.00022191,2]
[378100981,1754731845173,-460.0,0.00022191,2]
[378100982,1754731845183,-460.0,0.00022191,2]
[378100983,1754731845195,-460.0,0.00022191,2]
[378100984,1754731845205,-460.0,0.00022191,2]
[378100985,1754731845215,-460.0,0.00022191,2]
[378100986,1754731845224,-695.99,0.00022191,2]
[378100987,1754731845234,-460.0,0.00022191,2]
[378100988,1754731845243,-491.79,0.00022191,2]
[378100989,1754731845253,-460.0,0.00022191,2]
[378100990,1754731845262,-460.0,0.00022191,2]
[378100991,1754731845272,-627.56,0.00022191,2]
[378100992,1754731845281,-460.0,0.00022191,2]
[378100993,1754731845291,-460.0,0.00022191,2]
[378100994,1754731845300,-460.0,0.00022191,2]
[378100995,1754731845309,-460.0,0.00022191,2]
[378100996,1754731845318,-460.0,0.00022191,2]
[378100997,1754731845328,-460.0,0.00022191,2]
[378100998,1754731845337,-460.0,0.00022191,2]
[378100999,1754731845347,-460.0,0.00022191,2]
[378101000,1754731845356,-460.0,0.00022191,2]
[378101001,1754731845366,-460.0,0.00022191,2]
[378101002,1754731845377,-460.0,0.00022191,2]
[378101003,1754731845386,-460.0,0.00022191,2]
[378101004,1754731845396,-460.0,0.00022191,2]
[378101005,1754731845407,-460.12553484,0.00022191,2]
[378101006,1754731845417,-811.31,0.00022191,2]
[378101007,1754731845427,-460.0,0.00022191,2]
[378101008,1754731845436,-460.0,0.00022191,2]
[378101009,1754731845446,-460.0,0.00022191,2]
[378101010,1754731845456,-460.0,0.00022191,2]
[378101011,1754731845466,-483.37766896,0.00022191,2]
[378101012,1754731845475,-460.0,0.00022191,2]
[378101013,1754731845485,-460.0,0.00022191,2]
[378101014,1754731845495,-592.07444814,0.00022191,2]
[378101015,1754731845505,-460.0,0.00022191,2]
[378101016,1754731845518,-460.0,0.00022191,2]
[378101017,1754731845527,-460.0,0.00022191,2]
[378101018,1754731845537,-878.986196,0.00022191,7]
[378101019,1754731845547,-486.22492855,0.00022191,2]
[378101020,1754731845556,-878.986196,0.00022191,7]
[378101021,1754731845566,-460.0,0.00022191,2]
[378101022,1754731845576,-460.0,0.00022191,2]
[378101023,1754731845585,-460.0,0.00022191,2]
[378101024,1754731845597,-460.0,0.00022191,2]
[378101025,1754731845607,-460.0,0.00022191,2]
[378101026,1754731845617,-460.0,0.00022191,2]
[378101027,1754731845627,-460.0,0.00022191,2]
[378101028,1754731845638,-460.0,0.00022191,2]
[378101029,1754731845647,-513.179356,0.00022191,7]
[378101030,1754731845657,-513.179356,0.00022191,7]
[378101031,1754731845667,-445.387101,0.00022191,7]
[378101032,1754731845676,-445.387101,0.00022191,7]
[378101033,1754731845686,-460.0,0.00022191,2]
[378101034,1754731845695,-460.0,0.00022191,2]
[378101035,1754731845705,-460.0,0.00022191,2]
[378101036,1754731845714,-460.0,0.00022191,2]
[378101037,1754731845723,-849.01,0.00022191,2]
[378101038,1754731845733,-629.02,0.00022191,2]
[378101039,1754731845742,-460.0,0.00022191,2]
[378101040,1754731845752,-151.0,0.00022191,7]
[378101041,1754731845761,-460.0,0.00022191,2]
[378101042,1754731845771,-459.39197493,0.00022191,2]
[378101043,1754731845781,-460.0,0.00022191,2]
[378101044,1754731845791,-460.0,0.00022191,2]
[378101045,1754731845800,-798.7,0.00022191,2]
[378101046,1754731845810,-460.0,0.00022191,2]
[378101047,1754731845820,-460.0,0.00022191,2]
[378101048,1754731845829,-961.93,0.00022191,2]
[378101049,1754731845839,-460.0,0.00022191,2]
[378101050,1754731845849,-460.0,0.00022191,2]
[378101051,1754731845859,-460.0,0.00022191,2]
[378101052,1754731845869,-460.0,0.00022191,2]
[378101053,1754731845879,-1005.29,0.00022191,2]
[378101055,1754731845889,-460.0,0.00022191,2]
[378101056,1754731845900,-5272.4,0.00022191,2]
[378101057,1754731845912,-1027.59,0.00022191,2]
[378101058,1754731845928,-460.0,0.00022191,2]
[378101059,1754731845938,-629.19,0.00022191,2]
[378101060,1754731845947,-460.0,0.00022191,2]
[378101061,1754731845956,-460.0,0.00022191,2]
[378101062,1754731845967,-497.4,0.00022191,2]
[378101063,1754731845977,-460.0,0.00022191,2]
[378101064,1754731845987,-460.0,0.00022191,2]
[378101065,1754731845997,-460.0,0.00022191,2]
[378101066,1754731846007,-1509.57,0.00022191,2]
[378101068,1754731846016,-724.29,0.00022191,2]
[378101069,1754731846026,-460.0,0.00022191,2]
[378101070,1754731846036,-460.0,0.00022191,2]
[378101071,1754731846046,-1580.26,0.00022191,2]
[378101072,1754731846055,-460.0,0.00022191,2]
[378101073,1754731846065,-434.59611317,0.00022191,2]
[378101074,1754731846075,-462.39,0.00022191,2]
[378101075,1754731846085,-507.13849697,0.00022191,2]
[378101076,1754731846096,-460.0,0.00022191,2]
[378101077,1754731846106,-460.0,0.00022191,2]
[378101078,1754731846115,-682.23,0.00022191,2]
[378101079,1754731846125,-460.0,0.00022191,2]
[378101080,1754731846135,-460.0,0.00022191,2]
[378101081,1754731846144,-460.0,0.00022191,2]
[378101082,1754731846154,-460.0,0.00022191,2]
[378101083,1754731846164,-2318.76,0.00022191,2]
[378101084,1754731846174,-491.55,0.00022191,2]
[378101085,1754731846183,-460.0,0.00022191,2]
[378101086,1754731846195,-460.0,0.00022191,2]
[378101087,1754731846205,-460.0,0.00022191,2]
[378101088,1754731846214,-2167.21,0.00022191,2]
[378101089,1754731846224,-460.0,0.00022191,2]
[378101090,1754731846234,-1521.98,0.00022191,2]
[378101091,1754731846244,-460.0,0.00022191,2]
[378101092,1754731846253,-460.0,0.00022191,2]
[378101093,1754731846264,-460.0,0.00022191,2]
[378101094,1754731846274,-460.0,0.00022191,2]
[378101095,1754731846283,-460.0,0.00022191,2]
[378101096,1754731846292,-460.0,0.00022191,2]
[378101097,1754731846303,-460.0,0.00022191,2]
[378101098,1754731846312,-460.0,0.00022191,2]
[378101099,1754731846321,-1612.36,0.00022191,2]
[378101100,1754731846330,-748.6,0.00022191,2]
[378101101,1754731846339,-941.63,0.00022191,2]
[378101102,1754731846349,-150.88458714,0.00022191,2]
[378101103,1754731846358,-460.0,0.00022191,2]
[378101104,1754731846368,-851.39,0.00022191,2]
[378101105,1754731846377,-486.14,0.00022191,2]
[378101106,1754731846386,-460.0,0.00022191,2]
[378101107,1754731846396,-486.58,0.00022191,2]
[378101108,1754731846405,-460.0,0.00022191,2]
[378101109,1754731846415,-460.0,0.00022191,2]
[378101110,1754731846426,-460.0,0.00022191,2]
[378101111,1754731846436,-844.82,0.00022191,2]
[378101112,1754731846454,-1800.21,0.00022191,2]
[378101113,1754731846473,-460.0,0.00022191,2]
[378101114,1754731846483,-460.0,0.00022191,2]
[378101115,1754731846493,-460.0,0.00022191,2]
[378101116,1754731846503,-643.2,0.00022191,2]
[378101117,1754731846512,-197.80892963,0.00022191,2]
[378101118,1754731846522,-460.0,0.00022191,2]
[378101119,1754731846532,-460.0,0.00022191,2]
[378101120,1754731846542,-460.0,0.00022191,2]
[378101121,1754731846551,-460.0,0.00022191,2]
[378101122,1754731846561,-1351.49,0.00022191,2]
[378101123,1754731846571,-460.0,0.00022191,2]
[378101124,1754731846580,-540.39,0.00022191,2]
[378101125,1754731846590,-460.0,0.00022191,2]
[378101126,1754731846599,-654.04,0.00022191,2]
[378101127,1754731846609,-501.43,0.00022191,2]
[378101128,1754731846619,-496.11,0.00022191,2]
[378101129,1754731846628,-460.0,0.00022191,2]
[378101130,1754731846638,-460.0,0.00022191,2]
[378101131,1754731846648,-1059.68,0.00022191,2]
[378101132,1754731846658,-1113.92,0.00022191,2]
[378101133,1754731846667,-460.0,0.00022191,2]
[378101134,1754731846677,-460.0,0.00022191,2]
[378101135,1754731846686,-1229.13,0.00022191,2]
[378101136,1754731846696,-460.0,0.00022191,2]
[378101137,1754731846705,-460.0,0.00022191,2]
[378101138,1754731846715,-1197.06,0.00022191,2]
[378101139,1754731846724,-621.79,0.00022191,2]
[378101140,1754731846733,-460.0,0.00022191,2]
[378101141,1754731846742,-460.0,0.00022191,2]
[378101142,1754731846752,-460.0,0.00022191,2]
[378101143,1754731846762,-460.0,0.00022191,2]
[378101144,1754731846771,-460.0,0.00022191,2]
[378101145,1754731846782,-1588.18,0.00022191,2]
[378101146,1754731846791,-460.0,0.00022191,2]
[378101147,1754731846801,-3394.68,0.00022191,2]
[378101148,1754731846810,-460.0,0.00022191,2]
[378101149,1754731846820,-460.0,0.00022191,2]
[378101150,1754731846829,-460.0,0.00022191,2]
[378101151,1754731846842,-540.0,0.00022191,2]
[378101152,1754731846851,-460.0,0.00022191,2]
[378101153,1754731846860,-460.0,0.00022191,2]
[378101154,1754731846870,-460.0,0.00022191,2]
[378101155,1754731846879,-151.0,0.000222,7]
[378101156,1754731846889,-500.0,0.00022201,2]
[378101157,1754731846898,-2123.01740547,0.00022202,2]
[378101158,1754731846908,-800.0,0.00022209,2]
[378101159,1754731846918,-495.0,0.00022247,2]
[378101160,1754731846927,-800.0,0.00022267,2]
[378101161,1754731846937,-6721.50094195,0.00022273,7]
[378101162,1754731846946,-800.0,0.00022281,2]
[378101163,1754731846956,-151.0,0.000223,8]
[378101164,1754731846966,-151.0,0.000223,6]
[378101165,1754731846975,-151.0,0.000223,10]
[378101166,1754731846985,-800.0,0.00022306,2]
[378101167,1754731846994,-800.0,0.0002231,2]
[378101168,1754731847003,-168.0,0.00022329,2]
[378101169,1754731847013,-168.0,0.00022334,2]
[378101170,1754731847022,-800.0,0.00022342,2]
[378101171,1754731847031,-12666.14847857,0.00022348,3]
[378101172,1754731847041,-215.40758176,0.00022348,3]
[378101173,1754731847051,-160.0,0.00022348,3]
[378101174,1754731847060,-461.55179734,0.00022348,3]
[378101175,1754731847070,-153.71647018,0.00022348,3]
[378101176,1754731847080,-151.0,0.00022348,3]
[378101177,1754731847090,-274.47531061,0.00022348,3]
[378101178,1754731847099,-152.19274896,0.00022348,3]
[378101179,1754731847109,-151.0,0.00022348,3]
[378101180,1754731847119,-500.0,0.00022348,3]
[378101181,1754731847128,-198.0,0.00022348,3]
[378101182,1754731847138,-198.0,0.00022348,3]
[378101183,1754731847148,-151.0,0.00022348,3]